bitfinex-derivatives/quotes_BTCF0:USTF0_20210406
["timestamp","ask_amount","ask_price","bid_price","bid_amount"]
[1617745743550,1.0099,57958.0,57957.0,1.61984847]
[1617745743750,1.0099,57958.0,57957.0,0.61984847]
[1617745743751,0.9503,57958.0,57957.0,0.61984847]
[1617745743950,0.978,57958.0,57957.0,1.61984847]
[1617745744157,0.5045,57958.0,57957.0,1.61984847]
[1617745744553,0.5045,57958.0,57957.0,2.04757275]
[1617745744554,0.9626,57958.0,57957.0,2.04757275]
[1617745744752,0.838,57958.0,57957.0,2.04757275]
[1617745745953,0.9626,57958.0,57957.0,2.04757275]
[1617745746154,0.6826,57958.0,57957.0,2.04757275]
[1617745746355,0.6826,57958.0,57957.0,1.61984847]
[1617745746556,0.9626,57958.0,57957.0,1.61984847]
[1617745748255,0.9626,57958.0,57957.0,1.27]
[1617745748555,0.9626,57958.0,57957.0,1.62008472]
[1617745748955,0.9626,57958.0,57957.0,1.67148472]
[1617745749156,0.9626,57958.0,57957.0,1.62008472]
[1617745753660,0.9626,57958.0,57957.0,1.67248472]
[1617745753859,0.9626,57958.0,57957.0,1.62008472]
[1617745755163,0.9626,57958.0,57957.0,2.04795411]
[1617745757065,0.9626,57958.0,57957.0,1.62008472]
[1617745757466,0.9626,57958.0,57957.0,2.0481842]
[1617745757966,0.9626,57958.0,57957.0,1.62008472]
[1617745758368,0.9626,57958.0,57957.0,2.04833336]
[1617745758866,0.9626,57958.0,57957.0,1.62008472]
[1617745759767,0.9626,57958.0,57957.0,2.04834744]
[1617745761273,0.9626,57958.0,57957.0,2.24834744]
[1617745762771,0.9626,57958.0,57957.0,2.73472546]
[1617745763571,0.9626,57958.0,57957.0,2.24834744]
[1617745764971,0.9626,57958.0,57957.0,2.04834744]
[1617745766374,0.9626,57958.0,57957.0,2.09944744]
[1617745766578,0.9626,57958.0,57957.0,2.04834744]
[1617745769981,0.9626,57958.0,57957.0,2.09994744]
[1617745770181,0.9626,57958.0,57957.0,2.04834744]
[1617745770382,0.9626,57958.0,57957.0,1.04834744]
[1617745770582,0.9626,57958.0,57957.0,2.04834744]
[1617745772083,0.96157761,57958.0,57957.0,2.53509124]
[1617745774085,0.84347761,57958.0,57957.0,2.53509124]
[1617745774284,0.79817761,57958.0,57957.0,1.53509124]
[1617745774684,0.79817761,57958.0,57957.0,2.53509124]
[1617745776587,0.79817761,57958.0,57957.0,1.53509124]
[1617745776787,0.79817761,57958.0,57957.0,2.53509124]
[1617745778790,0.79817761,57958.0,57957.0,1.53509124]
[1617745778990,0.79817761,57958.0,57957.0,2.53509124]
[1617745781196,0.75457761,57958.0,57957.0,2.53509124]
[1617745781594,0.72807761,57958.0,57957.0,2.53509124]
[1617745781798,0.70517761,57958.0,57957.0,2.53509124]
[1617745781996,0.70517761,57958.0,57957.0,2.73509124]
[1617745782197,0.70517761,57958.0,57957.0,3.57194376]
[1617745782397,0.66045535,57958.0,57957.0,3.57194376]
[1617745782998,0.66045535,57958.0,57957.0,8.57194376]
[1617745783197,0.58325535,57958.0,57957.0,8.57194376]
[1617745783398,0.58325535,57958.0,57957.0,9.49037234]
[1617745784003,0.58325535,57958.0,57957.0,8.80705879]
[1617745784901,0.58325535,57958.0,57957.0,9.48898122]
[1617745785802,0.56615535,57958.0,57957.0,9.48898122]
[1617745787104,0.56615535,57958.0,57957.0,9.19705592]
[1617745787403,0.54055535,57958.0,57957.0,9.19705592]
[1617745787804,0.50665535,57958.0,57957.0,9.19705592]
[1617745788303,0.49575535,57958.0,57957.0,9.19705592]
[1617745788507,0.49375535,57958.0,57957.0,9.19705592]
[1617745788706,0.48805535,57958.0,57957.0,9.19705592]
[1617745790707,0.46195535,57958.0,57957.0,9.19705592]
[1617745791809,0.42805535,57958.0,57957.0,9.19705592]
[1617745792312,0.37665535,57958.0,57957.0,9.19705592]
[1617745792511,0.33365535,57958.0,57957.0,9.19705592]
[1617745792810,0.31635535,57958.0,57957.0,9.19705592]
[1617745793209,0.27193317,57958.0,57957.0,9.19705592]
[1617745793409,0.23713317,57958.0,57957.0,9.19705592]
[1617745794313,0.22813317,57958.0,57957.0,9.19705592]
[1617745796417,0.15063317,57958.0,57957.0,9.19705592]
[1617745798420,0.13933317,57958.0,57957.0,9.19705592]
[1617745799220,0.10573317,57958.0,57957.0,9.19705592]
[1617745799620,0.07123317,57958.0,57957.0,9.19705592]
[1617745800121,0.04553317,57958.0,57957.0,9.19705592]
[1617745800321,0.00783317,57958.0,57957.0,9.19705592]
[1617745801225,0.00519218,57990.0,57957.0,9.19705592]
[1617745801627,0.00519218,57990.0,57989.0,1.0]
[1617745802228,0.00519218,57990.0,57989.0,1.27]
[1617745802431,0.00519218,57990.0,57989.0,1.6819097]
[1617745803130,0.01028231,57992.0,57989.0,1.78916625]
[1617745803131,0.00519207,57991.0,57989.0,1.78916625]
[1617745803531,0.00519207,57991.0,57990.0,0.41205307]
[1617745803732,0.00519207,57991.0,57990.0,1.41205307]
[1617745803931,0.00519207,57991.0,57990.0,1.68205307]
[1617745804937,0.00519198,57992.0,57990.0,1.68205307]
[1617745805336,0.00519198,57992.0,57991.0,1.06132607]
[1617745805735,0.00519198,57992.0,57991.0,1.33132607]
[1617745806537,0.00518892,57993.0,57991.0,1.27]
[1617745806935,0.01027607,57993.0,57992.0,1.0]
[1617745807335,0.01027607,57993.0,57992.0,1.27]
[1617745808336,0.01027596,57994.0,57992.0,1.27]
[1617745808739,0.01027596,57994.0,57993.0,1.0]
[1617745809140,0.01027596,57994.0,57993.0,1.27]
[1617745809339,0.01027596,57994.0,57993.0,0.27]
[1617745809742,0.01027596,57994.0,57993.0,1.27]
[1617745809941,0.01027596,57994.0,57993.0,1.0]
[1617745810145,0.01027575,57995.0,57993.0,1.27]
[1617745810341,0.06207575,57995.0,57993.0,1.27]
[1617745810542,0.00518877,57994.0,57993.0,1.27]
[1617745810742,0.00518877,57994.0,57993.0,0.27]
[1617745811143,0.01027575,57995.0,57993.0,1.27]
[1617745811341,0.01027575,57995.0,57993.0,1.0]
[1617745811542,0.01027575,57995.0,57994.0,1.3217]
[1617745811741,0.01027575,57995.0,57994.0,0.27]
[1617745811941,0.01027575,57995.0,57993.0,1.0]
[1617745812141,0.01027575,57995.0,57992.0,1.0]
[1617745812342,0.01027575,57995.0,57994.0,0.27]
[1617745812543,0.01027575,57995.0,57993.0,1.0]
[1617745812743,0.01027575,57995.0,57994.0,1.0]
[1617745812943,0.01027575,57995.0,57994.0,1.26]
[1617745813144,0.01027575,57995.0,57994.0,1.0]
[1617745813343,0.01027586,57996.0,57993.0,1.0]
[1617745813546,0.01027586,57996.0,57994.0,1.27]
[1617745813742,0.01027586,57996.0,57994.0,1.0]
[1617745813943,0.01027592,57995.0,57990.0,0.35034823]
[1617745814344,0.01027592,57995.0,57994.0,1.0]
[1617745814944,0.01027592,57995.0,57994.0,1.01]
[1617745815145,0.01027592,57995.0,57994.0,0.01]
[1617745815544,0.01027592,57995.0,57993.0,0.27]
[1617745815745,0.01027592,57995.0,57991.0,1.0]
[1617745815944,0.01027592,57995.0,57992.0,0.01]
[1617745816145,0.01027592,57995.0,57994.0,0.27]
[1617745816345,0.01027592,57995.0,57990.0,1.35034823]
[1617745816546,0.01027592,57995.0,57992.0,0.27]
[1617745816746,0.01027592,57995.0,57994.0,0.26]
[1617745816947,0.30532694,57996.0,57994.0,0.26]
[1617745817147,0.30532694,57996.0,57990.0,1.35034823]
[1617745817348,0.30532694,57996.0,57995.0,0.36725655]
[1617745817548,0.36637093,57998.0,57995.0,0.36725655]
[1617745817749,0.36637093,57998.0,57995.0,0.10725655]
[1617745817950,0.30531368,57996.0,57995.0,0.10725655]
[1617745818349,0.30531368,57996.0,57995.0,0.37725655]
[1617745819554,0.30526028,57997.0,57995.0,0.37725655]
[1617745819954,0.01027366,57996.0,57995.0,0.37725655]
[1617745820557,0.30525651,57996.0,57995.0,0.37725655]
[1617745820955,0.0102735,57996.0,57995.0,0.37725655]
[1617745821257,0.30542794,57996.0,57995.0,0.37725655]
[1617745822057,0.30542794,57996.0,57995.0,1.37725655]
[1617745822260,0.01027905,57996.0,57995.0,1.37725655]
[1617745822560,0.00519043,57996.0,57995.0,1.37725655]
[1617745823760,0.01027908,57997.0,57995.0,1.37725655]
[1617745823961,0.01027908,57997.0,57995.0,1.51920655]
[1617745824165,0.01027908,57997.0,57996.0,1.0]
[1617745824461,0.01027908,57997.0,57996.0,1.27]
[1617745825466,0.00519025,57997.0,57996.0,1.27]
[1617745825770,0.05719025,57997.0,57996.0,1.3222]
[1617745826266,0.052,57997.0,57996.0,1.3222]
[1617745826467,0.01027876,57999.0,57996.0,1.3222]
[1617745826666,0.00519028,57998.0,57997.0,1.06131815]
[1617745827066,0.00519028,57998.0,57997.0,1.33131815]
[1617745827668,0.00519017,58000.0,57997.0,1.68186803]
[1617745828068,0.30540592,58002.0,57997.0,1.68186803]
[1617745828069,0.00519008,58002.0,57997.0,1.68186803]
[1617745828269,0.00519008,58002.0,57999.0,1.0]
[1617745828469,0.00518997,58003.0,57999.0,1.35047241]
[1617745828670,0.00518997,58003.0,58000.0,1.27]
[1617745828869,0.00518994,58004.0,58002.0,1.0]
[1617745829270,0.00518994,58004.0,58003.0,1.37725655]
[1617745829471,0.00518994,58004.0,58003.0,1.43857062]
[1617745829669,0.00518994,58004.0,58003.0,1.16857062]
[1617745830069,0.00518994,58004.0,58003.0,1.49027062]
[1617745830272,0.4675,58005.0,58003.0,1.42895655]
[1617745830670,0.00518337,58007.0,58004.0,1.0]
[1617745831072,0.00518328,58008.0,58006.0,1.0]
[1617745831471,0.00518328,58008.0,58006.0,1.01]
[1617745831672,0.00518326,58009.0,58007.0,1.0]
[1617745831871,0.00518326,58009.0,58007.0,1.09907]
[1617745832071,0.3049995,58012.0,58009.0,1.0]
[1617745832270,0.3049995,58012.0,58008.0,0.27]
[1617745832271,0.3049995,58012.0,58008.0,1.27]
[1617745832473,0.36647718,58012.0,58010.0,0.27]
[1617745832672,0.36647718,58012.0,58011.0,1.0]
[1617745833072,0.36647718,58012.0,58011.0,1.01]
[1617745833273,0.36647718,58012.0,58011.0,1.11725655]
[1617745833475,0.30541378,58012.0,58011.0,1.11725655]
[1617745834774,0.30540139,58013.0,58011.0,0.11725655]
[1617745834975,0.30540139,58013.0,58011.0,1.11725655]
[1617745835377,0.30540139,58013.0,58011.0,0.11725655]
[1617745835378,0.0051901,58012.0,58011.0,0.11725655]
[1617745835580,0.0567901,58012.0,58011.0,0.11725655]
[1617745835778,0.01027834,58012.0,58011.0,1.11725655]
[1617745836680,0.00519004,58012.0,58011.0,0.11725655]
[1617745837080,0.00519004,58012.0,58011.0,1.11725655]
[1617745837281,0.30540153,58012.0,58011.0,1.16905655]
[1617745837679,0.30540153,58012.0,58011.0,1.11725655]
[1617745837880,0.10725655,58034.0,58011.0,1.11725655]
[1617745838281,0.10725655,58034.0,58014.0,1.0]
[1617745838484,0.36644783,58016.0,58011.0,0.11725655]
[1617745838886,0.36644704,58018.0,58015.0,1.27]
[1617745839082,0.36644704,58018.0,58015.0,1.0]
[1617745839283,0.4478571,58022.0,58017.0,0.10725655]
[1617745839483,0.4478571,58022.0,58019.0,1.0]
[1617745839685,0.4478571,58022.0,58021.0,1.0]
[1617745839887,0.44785038,58023.0,58021.0,1.0]
[1617745840085,0.44785038,58023.0,58022.0,0.26]
[1617745840285,0.50891464,58028.0,58022.0,1.26]
[1617745840485,0.50891464,58028.0,58023.0,1.0]
[1617745840685,0.50891464,58028.0,58024.0,0.02]
[1617745841088,0.4751031,58034.0,58024.0,0.02]
[1617745841089,0.44715421,58025.0,58024.0,0.02]
[1617745841286,0.44715421,58025.0,58024.0,0.12725655]
[1617745841687,1.11793039,58025.0,58024.0,0.10725655]
[1617745841886,1.11793039,58025.0,58024.0,0.12725655]
[1617745843088,1.11793039,58025.0,58024.0,0.17945655]
[1617745844890,1.11793039,58025.0,58024.0,0.12725655]
[1617745845889,1.25197039,58025.0,58024.0,0.12725655]
[1617745846488,2.75197039,58025.0,58024.0,0.12725655]
[1617745846792,2.99720449,58025.0,58024.0,0.12725655]
[1617745847392,3.16742369,58025.0,58024.0,0.12725655]
[1617745847791,3.98072326,58025.0,58024.0,0.12725655]
[1617745848197,3.61285311,58025.0,58024.0,0.12725655]
[1617745848693,3.98072458,58025.0,58024.0,0.12725655]
[1617745848891,4.18072458,58025.0,58024.0,0.12725655]
[1617745849295,5.18072458,58025.0,58024.0,0.12725655]
[1617745849693,4.18072458,58025.0,58024.0,0.12725655]
[1617745850994,4.18072458,58025.0,58024.0,0.17845655]
[1617745851996,4.18072458,58025.0,58024.0,0.12725655]
[1617745854403,3.8148559,58025.0,58024.0,0.12725655]
[1617745854803,4.18098422,58025.0,58024.0,0.12725655]
[1617745855400,3.73383001,58025.0,58024.0,0.12725655]
[1617745855603,4.18129626,58025.0,58024.0,0.12725655]
[1617745855802,3.73606216,58025.0,58024.0,0.12725655]
[1617745856005,3.93606216,58025.0,58024.0,0.12725655]
[1617745859610,3.93606216,58025.0,58024.0,0.02]
[1617745860009,3.93606216,58025.0,58005.0,0.27]
[1617745860410,3.93606216,58025.0,58024.0,0.27]
[1617745860610,3.93606216,58025.0,58005.0,0.27]
[1617745860911,3.93606216,58025.0,58003.0,0.3524761]
[1617745861110,0.01027458,58006.0,58004.0,0.27]
[1617745861309,0.01027458,58006.0,58002.0,0.35258671]
[1617745861509,0.01027458,58006.0,58005.0,0.10725655]
[1617745861510,0.30528494,58006.0,58005.0,0.10725655]
[1617745861709,0.30528494,58006.0,58005.0,0.37725655]
[1617745862010,0.21027484,58006.0,58005.0,0.10725655]
[1617745862212,0.21027484,58006.0,58005.0,0.37725655]
[1617745862411,0.50529693,58006.0,58005.0,0.37725655]
[1617745863211,0.87180873,58006.0,58005.0,0.37725655]
[1617745864313,1.11707295,58006.0,58005.0,0.37725655]
[1617745865414,2.61707295,58006.0,58005.0,0.37725655]
[1617745865914,3.06502607,58006.0,58005.0,0.37725655]
[1617745866518,3.06502607,58006.0,58005.0,0.10725655]
[1617745866715,4.06502607,58006.0,58005.0,0.10725655]
[1617745866916,4.43294081,58006.0,58005.0,0.10725655]
[1617745867318,4.43294081,58006.0,57975.0,0.5498287]
[1617745867319,4.43294081,58006.0,57992.0,0.3535287]
[1617745867514,0.10725655,57993.0,57992.0,0.3535287]
[1617745867715,2.38494235,57993.0,57992.0,0.3535287]
[1617745867915,2.38494235,57993.0,57990.0,0.10725655]
[1617745868114,3.38494235,57993.0,57992.0,0.07]
[1617745868316,2.6302424,57993.0,57991.0,0.27]
[1617745868514,0.2,57992.0,57988.0,0.35387118]
[1617745868717,1.5,57991.0,57983.0,0.35415236]
[1617745868915,1.0,57989.0,57983.0,0.35415236]
[1617745869115,1.7,57988.0,57983.0,0.35415236]
[1617745869317,0.67238332,57984.0,57980.0,0.35436318]
[1617745869516,0.10725655,57981.0,57980.0,0.35436318]
[1617745869717,1.92236655,57981.0,57980.0,0.35436318]
[1617745869919,2.59476025,57981.0,57976.0,0.35465075]
[1617745870116,2.8400838,57981.0,57977.0,0.35462156]
[1617745870515,2.8400838,57981.0,57978.0,0.27]
[1617745870718,0.36675669,57979.0,57978.0,0.27]
[1617745870916,2.06675669,57979.0,57978.0,0.27]
[1617745871116,2.06675669,57979.0,57956.0,0.55176401]
[1617745871117,3.37243224,57979.0,57972.0,0.35486101]
[1617745871515,0.10725655,57973.0,57972.0,0.35486101]
[1617745871717,2.81243216,57973.0,57960.0,0.35388921]
[1617745871915,2.81243216,57973.0,57972.0,0.27]
[1617745872118,2.81243216,57973.0,57969.0,0.27]
[1617745872119,3.11180995,57973.0,57969.0,0.27]
[1617745872316,3.11180995,57973.0,57958.0,0.46130394]
[1617745872520,3.11180995,57973.0,57972.0,0.27]
[1617745872917,3.11180995,57973.0,57958.0,0.46130394]
[1617745872918,3.47726982,57973.0,57959.0,0.01]
[1617745873119,3.47726982,57973.0,57972.0,0.27]
[1617745873521,0.24537799,57972.0,57959.0,0.01]
[1617745873719,1.7,57971.0,57959.0,0.01]
[1617745873920,0.0051762,57965.0,57953.0,0.3544282]
[1617745874121,1.1553,57962.0,57953.0,0.3544282]
[1617745874321,2.7,57961.0,57960.0,0.27]
[1617745874521,2.7,57961.0,57953.0,0.01]
[1617745874722,2.7,57961.0,57952.0,0.10725655]
[1617745874922,2.7,57961.0,57960.0,0.27]
[1617745875122,2.7,57961.0,57954.0,0.01]
[1617745875320,1.7,57961.0,57952.0,0.10725655]
[1617745875521,1.7,57961.0,57960.0,0.27]
[1617745875720,1.7,57961.0,57953.0,0.01]
[1617745875922,1.70517706,57961.0,57952.0,0.10725655]
[1617745876122,1.70517706,57961.0,57960.0,0.27]
[1617745876525,1.70517706,57961.0,57952.0,0.10725655]
[1617745876526,1.7,57961.0,57952.0,0.10725655]
[1617745876721,1.7,57961.0,57960.0,0.27]
[1617745877122,1.7,57961.0,57959.0,0.14851]
[1617745877323,1.7,57961.0,57960.0,0.27]
[1617745877523,1.80725655,57961.0,57960.0,0.37725655]
[1617745877923,1.80725655,57961.0,57960.0,0.10725655]
[1617745878324,1.80725655,57961.0,57960.0,0.37725655]
[1617745885128,0.10725655,57961.0,57960.0,0.37725655]
[1617745885730,0.00515612,57974.0,57960.0,0.37725655]
[1617745886328,0.00515612,57974.0,57961.0,1.0]
[1617745886530,0.00515555,57982.0,57961.0,1.0]
[1617745886728,0.00515555,57982.0,57968.0,1.0]
[1617745886929,0.00515555,57982.0,57968.0,1.10563]
[1617745887130,0.00515555,57982.0,57972.0,1.0]
[1617745887330,1.5,57986.0,57972.0,1.0]
[1617745887529,0.45645514,57989.0,57985.0,0.10725655]
[1617745887728,0.45645514,57989.0,57985.0,0.20841655]
[1617745887930,0.4513,57989.0,57986.0,0.01]
[1617745890328,0.4513,57989.0,57988.0,1.0]
[1617745890734,0.4513,57989.0,57988.0,1.27]
[1617745891733,0.4513,57989.0,57988.0,0.27]
[1617745891932,0.00514874,58013.0,57988.0,1.27]
[1617745892135,0.00514865,58014.0,57988.0,1.0]
[1617745892333,0.00514865,58014.0,57997.0,1.0]
[1617745892534,0.00514847,58015.0,57997.0,1.13739]
[1617745892732,0.00514847,58015.0,57997.0,1.14739]
[1617745893134,0.00514844,58018.0,57997.0,1.14739]
[1617745893532,0.01019592,58019.0,57997.0,1.14739]
[1617745893533,0.00514839,58019.0,57997.0,1.25464655]
[1617745893933,0.00514839,58018.0,57997.0,1.25464655]
[1617745894341,0.00514825,58019.0,57997.0,1.25464655]
[1617745894833,0.0051526,58020.0,57997.0,1.25464655]
[1617745895235,0.46439555,58021.0,57997.0,0.25464655]
[1617745895236,0.45935254,58021.0,57997.0,0.25464655]
[1617745895632,0.45935254,58021.0,57997.0,1.25464655]
[1617745895836,0.4542,58021.0,57997.0,1.25464655]
[1617745896234,0.4542,58021.0,58020.0,1.0]
[1617745896433,0.4542,58021.0,58020.0,1.14899]
[1617745896634,0.4542,58021.0,58020.0,0.41899]
[1617745896833,0.4542,58021.0,58020.0,1.41899]
[1617745897634,0.4542,58021.0,58020.0,1.52624655]
[1617745898338,0.00515204,58033.0,58020.0,1.52624655]
[1617745898735,0.00515182,58034.0,58030.0,1.0]
[1617745899135,0.00515175,58036.0,58033.0,1.0]
[1617745899334,0.00515175,58036.0,58033.0,1.12313]
[1617745899535,0.00515175,58036.0,58034.0,1.01]
[1617745899734,0.00515175,58036.0,58035.0,0.10725655]
[1617745899935,0.00515162,58037.0,58035.0,1.10725655]
[1617745900134,0.00515162,58037.0,58035.0,0.36725655]
[1617745900434,0.00515162,58036.0,58035.0,1.36725655]
[1617745900834,0.0051516,58037.0,58035.0,0.36725655]
[1617745902539,0.0051516,58037.0,58035.0,1.36725655]
[1617745903542,0.0051516,58037.0,58035.0,0.36725655]
[1617745903940,0.0051516,58037.0,58036.0,1.0]
[1617745904340,0.0051516,58037.0,58036.0,1.27]
[1617745905142,0.0051516,58039.0,58036.0,1.27]
[1617745905542,0.00515154,58040.0,58038.0,1.0]
[1617745905841,0.00515154,58039.0,58038.0,1.0]
[1617745906043,0.00515154,58039.0,58035.0,0.10725655]
[1617745906243,0.00515154,58039.0,58038.0,1.27]
[1617745906445,0.00514377,58041.0,58038.0,1.27]
[1617745906648,0.00514377,58041.0,58039.0,1.0]
[1617745906844,0.00514377,58041.0,58039.0,1.27]
[1617745907044,0.00514377,58041.0,58040.0,1.0]
[1617745907246,0.00514377,58041.0,58039.0,1.0]
[1617745907445,0.00514377,58041.0,58040.0,0.27]
[1617745907646,0.00514354,58042.0,58040.0,0.27]
[1617745907846,0.00514354,58042.0,58039.0,1.0]
[1617745908046,0.00514354,58042.0,58040.0,0.27]
[1617745909449,0.00514358,58041.0,58039.0,0.01]
[1617745909650,0.00514358,58041.0,58038.0,0.27]
[1617745910050,0.00514358,58041.0,58036.0,1.0]
[1617745910250,0.00514358,58041.0,58038.0,0.27]
[1617745910650,0.00514358,58041.0,58035.0,0.10725655]
[1617745910852,0.0051436,58040.0,58039.0,0.27]
[1617745911255,0.0051436,58039.0,58036.0,0.27]
[1617745911451,0.0051436,58039.0,58036.0,1.0]
[1617745911753,0.00514353,58040.0,58037.0,0.27]
[1617745912153,0.00513723,58041.0,58037.0,0.27]
[1617745912553,0.00513723,58041.0,58036.0,0.27]
[1617745912754,0.00513723,58041.0,58038.0,0.27]
[1617745913154,0.00513723,58041.0,58036.0,0.27]
[1617745913356,0.00513723,58041.0,58039.0,0.27]
[1617745913758,0.00513723,58041.0,58037.0,0.0513]
[1617745913955,0.00513723,58041.0,58040.0,0.27]
[1617745914356,0.00513723,58041.0,58036.0,0.27]
[1617745914557,0.00513723,58041.0,58040.0,0.27]
[1617745914962,0.00513723,58041.0,58036.0,0.26]
[1617745915358,0.00513723,58041.0,58040.0,0.27]
[1617745915560,0.30227355,58041.0,58036.0,0.27]
[1617745915759,0.10725655,58037.0,58036.0,0.27]
[1617745915957,0.10725655,58037.0,58035.0,0.10725655]
[1617745916159,0.11239356,58037.0,58035.0,0.10725655]
[1617745916360,0.11239356,58037.0,58036.0,0.27]
[1617745917359,1.61239356,58037.0,58036.0,0.27]
[1617745917960,2.90954116,58037.0,58036.0,0.27]
[1617745918159,2.90954116,58037.0,58028.0,0.01]
[1617745918358,2.90954116,58037.0,58009.0,0.27]
[1617745918561,3.27245917,58037.0,58009.0,0.27]
[1617745918759,3.27245917,58037.0,58029.0,0.27]
[1617745918964,0.00514022,58030.0,58009.0,0.27]
[1617745919158,0.13070022,58030.0,58009.0,0.27]
[1617745919364,0.00514033,58028.0,58008.0,1.0]
[1617745919559,0.00514033,58028.0,58009.0,0.27]
[1617745919760,0.00514033,58028.0,58021.0,0.10725655]
[1617745920158,0.00514033,58028.0,58022.0,0.27]
[1617745920759,0.00514039,58027.0,58022.0,0.27]
[1617745921563,0.00514036,58026.0,58022.0,0.27]
[1617745921759,0.10725655,58023.0,58022.0,0.27]
[1617745924763,0.22329655,58023.0,58022.0,0.27]
[1617745925968,0.10725655,58023.0,58022.0,0.27]
[1617745926368,0.00513832,58031.0,58022.0,0.27]
[1617745926571,0.00513832,58033.0,58022.0,0.40077]
[1617745927170,0.00513832,58033.0,58026.0,1.0]
[1617745927370,0.0051382,58034.0,58026.0,1.0]
[1617745927569,0.0051382,58034.0,58027.0,0.27]
[1617745927771,0.0051382,58036.0,58033.0,0.10725655]
[1617745928370,0.0051382,58036.0,58034.0,0.42604]
[1617745928572,0.00513799,58037.0,58034.0,0.42604]
[1617745928972,0.11239454,58039.0,58034.0,0.42604]
[1617745929372,0.10725655,58039.0,58034.0,0.42604]
[1617745934281,0.10725655,58039.0,58034.0,0.27]
[1617745934680,1.5,58038.0,58034.0,0.27]
[1617745934881,0.00513909,58036.0,58034.0,0.27]
[1617745935081,0.00513909,58036.0,58018.0,1.0]
[1617745935482,1.0051398,58035.0,58020.0,0.01]
[1617745935682,1.5,58034.0,58020.0,0.01]
[1617745935884,0.40971087,58021.0,58000.0,0.19725655]
[1617745936082,0.00514001,58019.0,58000.0,0.19725655]
[1617745936282,0.00514001,58019.0,58000.0,0.10725655]
[1617745936482,1.1285,58006.0,58001.0,0.27]
[1617745936683,1.5,58005.0,58001.0,0.27]
[1617745936986,1.5,58005.0,57982.0,0.27]
[1617745937383,1.5,58005.0,57978.0,0.01]
[1617745937384,1.5,58005.0,58002.0,0.26]
[1617745937587,1.5,58005.0,57977.0,1.0]
[1617745937588,1.5,58005.0,57978.0,0.27]
[1617745937785,1.5,58005.0,57981.0,0.10725655]
[1617745937985,0.30286316,58004.0,58003.0,0.27]
[1617745938186,1.80286316,58004.0,57982.0,0.26]
[1617745938586,1.80286316,58004.0,58003.0,0.27]
[1617745938785,1.80286316,58004.0,57981.0,0.10725655]
[1617745938786,1.80286316,58004.0,57982.0,0.27]
[1617745938987,0.00514702,58002.0,57982.0,0.27]
[1617745939186,0.00514702,58002.0,57983.0,1.0]
[1617745939386,0.00514694,58001.0,57983.0,1.27]
[1617745939787,0.00514694,58001.0,57988.0,0.10725655]
[1617745940189,0.00514705,58000.0,57988.0,0.10725655]
[1617745940387,0.00514705,58000.0,57989.0,0.01]
[1617745940788,0.00514697,58001.0,57989.0,0.01]
[1617745941689,1.50514695,58002.0,57989.0,0.01]
[1617745941891,0.10725655,57990.0,57989.0,0.01]
[1617745942791,0.00514695,58002.0,57989.0,0.01]
[1617745942994,0.00517497,57993.0,57989.0,1.15358]
[1617745943393,0.44656947,58002.0,57989.0,1.15358]
[1617745943394,0.00517472,58002.0,57989.0,0.50529583]
[1617745943594,0.00517472,58002.0,57992.0,1.0]
[1617745943793,0.00517472,58002.0,57989.0,0.50529583]
[1617745943995,0.10725655,58002.0,58001.0,0.25085655]
[1617745944394,0.10725655,58002.0,58001.0,0.26085655]
[1617745944599,0.41175334,58002.0,58001.0,0.26085655]
[1617745945097,0.10725655,58002.0,58001.0,0.26085655]
[1617745945298,0.01024763,58002.0,58001.0,0.26085655]
[1617745945699,0.01024763,58002.0,58001.0,1.26085655]
[1617745945900,0.3653637,58006.0,58001.0,1.26085655]
[1617745945901,0.00517432,58005.0,58001.0,1.26085655]
[1617745946301,0.00517427,58006.0,58002.0,1.0]
[1617745946499,0.00517427,58006.0,58004.0,1.0]
[1617745946702,0.00517427,58006.0,58005.0,1.0]
[1617745946898,0.00517427,58006.0,58005.0,1.01]
[1617745947101,0.00517415,58007.0,58005.0,1.01]
[1617745947298,0.00517415,58007.0,58005.0,1.0]
[1617745947500,0.00517405,58009.0,58005.0,1.27]
[1617745947700,0.00517405,58009.0,58006.0,1.0]
[1617745947901,0.30445734,58011.0,58008.0,0.10725655]
[1617745947902,0.00517397,58011.0,58008.0,0.10725655]
[1617745948503,0.00517397,58011.0,58009.0,0.01]
[1617745948903,0.01025403,58010.0,58009.0,0.01]
[1617745949303,0.30467586,58010.0,58009.0,0.01]
[1617745949704,0.10725655,58013.0,58009.0,0.01]
[1617745950103,0.304682,58010.0,58009.0,0.01]
[1617745950502,0.418072,58010.0,58009.0,0.01]
[1617745950703,0.78367078,58010.0,58009.0,0.01]
[1617745950903,0.78367078,58010.0,58002.0,0.27]
[1617745951104,1.02891557,58010.0,58002.0,0.27]
[1617745951302,1.02891557,58010.0,58009.0,0.01]
[1617745951503,0.11339,58010.0,58003.0,0.27]
[1617745951903,0.11339,58010.0,58009.0,0.01]
[1617745952103,1.9468281,58011.0,58004.0,0.27]
[1617745952307,0.67029596,58010.0,58004.0,0.27]
[1617745952504,0.67029596,58010.0,57999.0,0.10725655]
[1617745952704,0.3656085,58008.0,58005.0,0.27]
[1617745953105,0.3656085,58008.0,58000.0,0.27]
[1617745953106,0.36561182,58007.0,58006.0,0.0516]
[1617745953304,0.36561182,58007.0,58006.0,0.36879]
[1617745953705,0.44683632,58011.0,58006.0,0.36879]
[1617745953706,0.0051778,58010.0,58006.0,0.09879]
[1617745953904,0.0051778,58010.0,58009.0,0.10725655]
[1617745954108,0.10725655,58015.0,58009.0,1.10725655]
[1617745954506,0.00517389,58015.0,58010.0,0.27]
[1617745954704,0.00517389,58015.0,58012.0,1.0]
[1617745954909,0.00517375,58017.0,58014.0,1.0]
[1617745955306,0.00517375,58017.0,58015.0,1.01]
[1617745955507,0.00517354,58023.0,58015.0,1.01]
[1617745955705,0.00517354,58023.0,58016.0,1.0]
[1617745955906,0.00517354,58023.0,58006.0,0.09879]
[1617745955907,0.00517352,58024.0,58022.0,1.10725655]
[1617745956107,0.00517352,58024.0,58022.0,1.24489655]
[1617745956308,0.00517352,58024.0,58023.0,1.01]
[1617745956709,0.00517311,58028.0,58023.0,1.01]
[1617745957209,0.01024479,58029.0,58023.0,1.01]